bitfinex/quotes_ETHUSD_20250131
["timestamp","ask_amount","ask_price","bid_price","bid_amount"]
[1738334162774,0.678592,3350.4,3349.5,0.7824]
[1738334162775,3.663332,3350.4,3349.5,0.7824]
[1738334163089,0.03731606,3350.3,3349.0,0.7576]
[1738334163291,2.98534,3349.7,3349.6,0.07914341]
[1738334163503,2.98544,3349.6,3349.0,0.7576]
[1738334163790,2.98552,3349.5,3349.1,0.07915827]
[1738334164117,2.98578,3349.2,3349.1,0.07915827]
[1738334164278,2.98578,3349.2,3348.5,3.744]
[1738334164476,6.58665077,3349.2,3349.1,0.07915827]
[1738334164676,6.80221,3348.5,3348.4,0.30662]
[1738334164876,2.98601,3349.0,3348.4,0.30662]
[1738334165073,0.60087077,3349.2,3348.5,2.98632]
[1738334165407,2.98534,3349.7,3349.0,2.98593]
[1738334165718,2.98534,3349.7,3348.6,0.07918125]
[1738334165719,3.37541166,3350.0,3349.2,2.98576]
[1738334165940,3.76114,3350.6,3349.1,0.07915827]
[1738334166082,2.98476,3350.4,3349.4,0.8031]
[1738334166277,2.98501,3350.1,3349.4,3.7887]
[1738334166477,2.98501,3350.1,3349.5,0.07913989]
[1738334166718,5.98484,3350.3,3349.5,3.06463989]
[1738334166918,0.7809,3351.1,3349.8,2.98523]
[1738334167139,3.9030166,3350.6,3349.5,0.07913989]
[1738334167319,2.98507,3350.0,3349.9,0.07912151]
[1738334167629,2.98507,3350.0,3348.9,2.98604]
[1738334167630,2.98529,3349.8,3349.1,2.98586]
[1738334167812,2.98529,3349.8,3348.9,2.98604]
[1738334167813,2.9854,3349.7,3348.9,2.98604]
[1738334168127,2.9854,3349.7,3349.2,0.0791516]
[1738334168308,3.0,3350.0,3348.8,0.7519]
[1738334168512,2.98471,3350.4,3349.7,2.98527]
[1738334168823,5.98483,3350.3,3349.8,0.07912611]
[1738334169026,2.9849,3350.2,3349.8,0.07912611]
[1738334169336,2.98475,3350.4,3349.6,2.98536]
[1738334169494,2.98436,3350.8,3350.0,2.98505]
[1738334169677,2.98454,3350.6,3349.9,0.8056]
[1738334169880,0.03731338,3350.5,3350.1,0.07911233]
[1738334170130,2.98498,3350.1,3350.0,0.07911692]
[1738334170331,2.98498,3350.1,3349.4,2.98559]
[1738334170642,2.98499,3350.1,3349.4,2.98559]
[1738334170999,0.015,3350.1,3348.9,2.98598]
[1738334171201,2.98542,3349.7,3348.9,2.98598]
[1738334171499,0.597809,3349.7,3348.9,2.98602]
[1738334171815,0.597809,3349.7,3348.8,3.80322]
[1738334171816,0.0075,3349.6,3348.8,3.80322]
[1738334172022,0.0075,3349.6,3348.4,1.11242]
[1738334172023,2.98593,3349.1,3348.4,1.11242]
[1738334172193,2.98622,3348.8,3348.4,0.30662]
[1738334172381,0.0075,3349.3,3348.4,3.29308]
[1738334172630,1.28892266,3349.3,3348.7,2.98616]
[1738334173042,1.28892266,3349.3,3348.8,2.98614]
[1738334173336,2.98516,3349.9,3349.0,2.98595]
[1738334173633,2.98516,3349.9,3348.9,0.7866]
[1738334173634,2.9857,3349.3,3348.9,0.7866]
[1738334174001,3.8111,3350.0,3348.9,0.7866]
[1738334174167,0.8271,3350.4,3349.8,2.98524]
[1738334174341,0.8271,3350.4,3348.9,0.7866]
[1738334174342,2.98512,3350.0,3348.9,0.7866]
[1738334174665,0.8271,3350.4,3348.9,3.77261]
[1738334174666,2.98549,3349.6,3348.9,3.77261]
[1738334175252,2.98525,3349.8,3348.9,3.77261]
[1738334175456,3.0,3350.1,3348.9,3.77261]
[1738334175457,3.283865,3349.7,3348.9,0.7866]
[1738334175762,3.0,3350.2,3348.9,3.7726]
[1738334176069,2.99999,3350.1,3349.5,2.98544]
[1738334176230,3.81183,3350.4,3349.0,0.0789924]
[1738334176431,0.8271,3350.4,3349.6,0.07896483]
[1738334176734,0.8271,3350.4,3348.9,3.7726]
[1738334176922,2.98469,3350.5,3349.9,2.98515]
[1738334177122,2.98469,3350.5,3350.0,0.07894645]
[1738334177322,2.98472,3350.4,3350.0,0.07894645]
[1738334177562,0.7832,3351.2,3350.2,2.98486]
[1738334177779,2.9841,3351.1,3350.5,2.98461]
[1738334177977,2.98426,3351.0,3350.4,2.98465]
[1738334178264,2.99946,3350.7,3350.6,0.0789189]
[1738334178473,2.99954,3350.6,3350.5,0.07892349]
[1738334178679,2.99954,3350.6,3349.1,0.7999]
[1738334178680,0.8026,3350.3,3349.1,0.7999]
[1738334178857,2.98555,3349.5,3348.5,0.7999]
[1738334179023,2.98451,3350.7,3349.6,2.98543]
[1738334179221,0.7838,3351.2,3350.4,2.98465]
[1738334179527,3.76781,3351.2,3350.4,2.98463]
[1738334179724,2.98436,3350.8,3350.5,0.07892349]
[1738334180055,2.98436,3350.8,3350.2,2.98486]
[1738334180056,2.98418,3351.0,3350.4,2.98465]
[1738334180279,2.98416,3351.1,3350.6,0.0789189]
[1738334180569,2.9841,3351.1,3350.7,0.07891431]
[1738334180777,3.73611,3351.9,3351.2,2.98397]
[1738334181074,3.9030166,3352.4,3351.4,5.96764]
[1738334181372,2.98285,3352.5,3351.9,2.98331]
[1738334181579,0.596563,3352.4,3352.0,0.07854632]
[1738334181718,3.73721,3352.9,3352.3,2.98301]
[1738334181928,3.54034,3352.5,3352.4,0.07852797]
[1738334182140,2.9836,3351.7,3351.1,2.98406]
[1738334182380,2.98397,3351.3,3351.2,0.07858303]
[1738334182663,2.99897,3351.3,3351.2,0.07858303]
[1738334182861,2.98397,3351.3,3350.6,2.98452]
[1738334183072,4.6834166,3352.0,3350.8,2.98436]
[1738334183222,2.98173,3353.8,3350.7,0.84930598]
[1738334183223,3.9030166,3352.5,3350.7,0.84930598]
[1738334183577,1.85216366,3352.8,3351.9,2.98334]
[1738334183578,3.53267,3352.7,3351.9,2.98334]
[1738334183870,0.0075,3352.6,3352.0,3.06179632]
[1738334184069,0.439757,3352.6,3352.0,3.06179632]
[1738334184256,0.432257,3352.6,3352.0,0.07854632]
[1738334184452,0.432257,3352.6,3352.0,3.06176632]
[1738334184763,5.98275,3352.7,3351.7,0.7815]
[1738334184764,2.98241,3353.0,3352.1,0.07854173]
[1738334184964,2.98251,3352.9,3352.2,2.98309]
[1738334185173,2.98266,3352.8,3352.3,0.07853256]
[1738334185364,0.675357,3352.8,3352.3,0.07853256]
[1738334186029,2.98321,3352.1,3351.7,0.7815]
[1738334186268,0.015,3352.4,3351.7,0.7815]
[1738334186472,2.98288,3352.5,3351.7,0.7815]
[1738334186625,0.298288,3352.5,3351.7,0.7815]
[1738334186830,2.98318,3352.2,3351.7,0.7815]
[1738334187030,2.98318,3352.2,3351.3,2.9839]
[1738334187031,2.98337,3352.0,3351.3,2.9839]
[1738334187228,5.96651,3352.1,3351.4,2.98377]
[1738334187585,0.015,3352.2,3351.2,3.75534]
[1738334187869,2.98327,3352.1,3351.4,2.98376]
[1738334188077,2.98302,3352.3,3351.7,2.98352]
[1738334188255,0.896587,3352.3,3351.7,2.98352]
[1738334188440,5.9977,3352.7,3351.9,2.98331]
[1738334188770,5.9977,3352.7,3351.3,2.9839]
[1738334189052,2.98293,3352.5,3351.8,2.98338]
[1738334189204,2.98295,3352.4,3351.6,2.98363]
[1738334189407,2.98332,3352.0,3351.4,2.98382]
[1738334189607,2.98313,3352.2,3351.2,3.7554]
[1738334189794,2.98313,3352.2,3351.3,2.9839]
[1738334189998,0.0075,3352.3,3351.3,2.9839]
[1738334190197,2.98375,3351.5,3350.8,0.7848]
[1738334190379,0.015,3351.3,3350.1,0.7848]
[1738334190714,2.98472,3350.4,3349.8,2.98523]
[1738334190860,2.98488,3350.3,3349.7,0.7517]
[1738334191061,2.98472,3350.4,3349.7,0.7517]
[1738334191315,0.7613,3352.0,3349.8,2.98523]
[1738334191517,0.55,3351.9,3351.3,2.98389]
[1738334191667,0.55,3351.9,3351.2,2.98394]
[1738334191861,2.99054,3352.3,3351.6,2.98362]
[1738334192113,3.78986,3352.5,3351.6,2.98362]
[1738334192114,2.98286,3352.5,3351.6,2.98362]
[1738334192266,3.5329,3352.5,3351.6,2.98363]
[1738334192621,0.3015,3352.6,3351.0,0.7922]
[1738334192622,0.3015,3352.6,3351.7,0.07750568]
[1738334192785,2.98292,3352.5,3351.7,0.84360568]
[1738334192966,3.54767,3352.7,3351.7,0.84360568]
[1738334193184,3.54767,3352.7,3351.7,0.07750568]
[1738334193185,2.98331,3352.0,3351.7,0.07750568]
[1738334193382,3.0,3352.7,3351.2,0.7661]
[1738334193615,2.9827,3352.7,3352.1,0.805]
[1738334193766,2.98294,3352.4,3351.6,3.78859]
[1738334193966,2.98294,3352.4,3351.7,3.06105568]
[1738334194295,0.55,3352.9,3351.7,0.07750568]
[1738334194494,0.55,3352.9,3351.7,3.06103568]
[1738334194699,0.708232,3352.8,3351.7,0.07750568]
[1738334194896,0.55,3352.8,3351.7,0.07750568]
[1738334195070,2.98267,3352.7,3351.8,2.98338]
[1738334195279,0.55,3352.5,3351.7,3.06103568]
[1738334195578,2.98223,3353.2,3352.2,2.98311]
[1738334195791,0.373733,3353.2,3352.6,2.98271]
[1738334196018,0.55,3353.3,3352.7,0.0774598]
[1738334196321,5.98198,3353.5,3352.7,3.0601198]
[1738334196470,0.55,3354.0,3352.5,0.8167]
[1738334196672,0.55,3353.8,3352.8,3.06002522]
[1738334197028,0.55,3353.1,3352.9,0.07745063]
[1738334197485,2.98196,3353.5,3352.7,2.98265]
[1738334197687,5.98191,3353.6,3352.9,2.98247]
[1738334198001,2.98196,3353.5,3353.0,0.07744605]
[1738334198201,3.5575,3353.4,3353.0,0.07744605]
[1738334198375,0.55,3353.2,3352.5,0.8167]
[1738334198566,2.98242,3353.0,3352.5,0.8167]
[1738334198812,2.98242,3353.0,3352.2,2.98305]
[1738334198813,0.298242,3353.0,3352.6,0.07746439]
[1738334199022,0.55,3353.0,3352.6,0.07746439]
[1738334199202,3.5324,3353.0,3352.2,0.7875]
[1738334199520,0.015,3353.0,3352.2,0.7875]
[1738334199723,0.5575,3352.8,3352.3,0.07747815]
[1738334200019,0.55,3352.4,3352.3,0.07747815]
[1738334200390,3.336679,3352.7,3351.9,2.98337]
[1738334200588,3.53238,3353.1,3352.0,0.07749191]
[1738334200786,3.53238,3353.1,3352.3,2.98298]
[1738334201110,3.53213,3353.4,3352.5,2.98284]
[1738334201309,0.734222,3353.3,3352.5,2.98284]
[1738334201471,3.0,3353.2,3352.6,0.07746439]
[1738334201678,2.98178,3353.7,3352.9,2.98245]
[1738334201928,2.98188,3353.6,3352.9,2.98245]
[1738334202123,3.0,3353.5,3353.0,0.07744605]
[1738334202285,3.0,3353.5,3352.9,2.98245]
[1738334202479,0.597099,3353.6,3352.9,2.98245]
[1738334202698,3.0,3353.5,3352.9,2.98245]
[1738334202929,2.9822,3353.3,3353.0,0.07675297]
[1738334203086,0.35322,3353.2,3353.0,0.07675297]
[1738334203413,0.35322,3353.2,3352.4,0.7697]
[1738334203619,2.9824,3353.0,3352.4,0.7697]
[1738334203786,2.9825,3352.9,3352.5,0.0767759]
[1738334204141,3.53238,3353.1,3352.5,0.0767759]
[1738334204348,2.98224,3353.2,3352.5,0.0767759]
[1738334204657,3.54775,3352.6,3352.5,0.0767759]
[1738334204950,0.65304,3352.6,3352.5,0.0767759]
[1738334205249,2.98233,3353.1,3352.5,0.07648821]
[1738334205459,2.98258,3352.8,3352.5,0.07648821]
[1738334205603,0.015,3353.1,3352.5,0.07648821]
[1738334205799,3.53224,3353.2,3352.3,0.8324]
[1738334206040,2.98224,3353.2,3352.4,0.0764928]
[1738334206353,0.55,3353.8,3352.6,2.98269]
[1738334206559,2.98193,3353.6,3352.8,2.98257]
[1738334206705,3.633322,3353.5,3352.8,2.98257]
[1738334206910,0.55,3353.4,3352.9,0.07646987]
[1738334207143,2.98228,3353.2,3352.9,0.07646987]
[1738334207355,2.98233,3353.1,3352.4,2.98291]
[1738334207514,7.128791,3353.1,3353.0,0.07646529]
[1738334207717,2.9826,3352.8,3352.3,0.8324]
[1738334207916,3.578801,3353.1,3352.4,2.98286]
[1738334207917,2.98234,3353.1,3352.4,2.98286]
[1738334208222,2.98234,3353.1,3352.4,3.0593528]
[1738334208424,2.98213,3353.3,3352.7,2.98266]
[1738334208867,2.98194,3353.6,3352.9,2.98247]
[1738334209165,2.98171,3353.8,3353.0,3.48808]
[1738334209375,2.98181,3353.7,3353.0,3.56442781]
[1738334209658,2.98152,3354.0,3353.0,0.58204781]
[1738334209814,3.281172,3354.0,3353.2,2.98215]
[1738334210015,3.281172,3354.0,3353.3,2.98207]
[1738334210215,3.281172,3354.0,3353.3,3.05838786]
[1738334210417,0.299652,3354.0,3353.3,0.07631786]
[1738334210649,2.98176,3353.8,3353.3,0.07631786]
[1738334210858,2.98176,3353.8,3353.1,2.98231]
[1738334210859,2.9818,3353.7,3353.1,2.98231]
[1738334211067,2.98176,3353.8,3353.4,0.07631327]
[1738334211368,2.98169,3353.8,3353.1,2.98231]
[1738334211526,2.98169,3353.8,3353.2,2.98217]
[1738334211767,2.98119,3354.4,3353.6,2.9818]
[1738334211971,2.98119,3354.4,3353.7,0.07602011]
[1738334212290,3.53098,3354.7,3353.8,0.7553]
[1738334212457,3.53098,3354.7,3354.0,2.98144]
[1738334212653,2.98072,3354.9,3354.0,2.98151]
[1738334212850,2.98106,3354.6,3354.1,0.07600178]
[1738334213057,0.55,3354.7,3354.1,0.07600178]
[1738334213353,0.432952,3354.8,3353.0,9.8853266]
[1738334213354,0.0075,3354.5,3353.0,0.8023]
[1738334213553,2.98137,3354.2,3353.5,2.98187]
[1738334213767,2.98097,3354.7,3353.9,0.8023]
[1738334213975,3.7042922,3354.7,3354.0,2.98145]
[1738334214167,2.98108,3354.5,3353.9,0.8023]
[1738334214357,0.7233222,3354.7,3353.9,0.8023]
[1738334214358,2.98148,3354.1,3353.9,0.8023]
[1738334215412,0.55,3354.2,3353.2,0.8292]
[1738334215590,2.98161,3353.9,3353.2,3.81142]
[1738334215756,2.98145,3354.1,3353.4,2.98199]
[1738334215957,2.98145,3354.1,3353.2,3.8114]
[1738334216185,0.298145,3354.1,3353.2,3.81142]
[1738334216460,2.98167,3353.9,3353.2,3.81134]
[1738334216693,2.98151,3354.1,3353.3,2.98213]
[1738334217005,2.98121,3354.4,3353.7,2.98176]
[1738334217188,2.98104,3354.6,3353.7,2.98176]
[1738334217392,3.69285442,3354.6,3354.0,3.74947]
[1738334217561,2.98104,3354.6,3354.0,0.768]
[1738334217761,0.432952,3354.8,3354.2,2.9813]
[1738334218072,2.98054,3355.1,3354.4,2.98114]
[1738334218293,2.98081,3354.8,3354.2,2.98125]
[1738334218459,2.98081,3354.8,3354.0,3.74947]
[1738334218460,0.55,3355.2,3354.0,0.768]
[1738334218660,3.9030166,3355.6,3353.5,0.7862]
[1738334218661,2.9816,3353.9,3353.5,0.7862]
[1738334218852,2.98169,3353.8,3353.5,0.7862]
[1738334219071,2.98151,3354.1,3353.6,0.07517857]
[1738334219302,2.98109,3354.5,3353.6,0.07517857]
[1738334219536,2.98131,3354.3,3353.6,3.05698857]
[1738334219719,2.98142,3354.1,3353.6,0.07517857]
[1738334219907,2.98131,3354.3,3353.7,2.98177]
[1738334220250,3.01861728,3354.2,3353.8,0.07518152]
[1738334220433,2.98149,3354.1,3353.8,0.07518152]
[1738334220605,2.98149,3354.1,3353.5,0.7862]
[1738334220804,2.98147,3354.1,3353.6,0.07516678]
[1738334221051,3.279179,3354.5,3353.7,2.98175]
[1738334221206,2.98064,3355.0,3353.6,0.61486784]
[1738334221406,2.98091,3354.7,3353.8,2.98169]
[1738334221612,2.98091,3354.7,3353.9,0.07517661]
[1738334221830,2.98074,3354.9,3353.9,0.07517661]
[1738334222030,2.98054,3355.1,3354.3,2.98118]
[1738334222203,2.98063,3355.0,3354.4,2.98114]
[1738334222402,2.98046,3355.2,3354.6,2.98096]
[1738334222697,2.98021,3355.5,3354.8,3.76128]
[1738334223007,0.55,3356.1,3354.9,0.07513112]
[1738334223211,3.54535,3355.3,3354.4,0.7805]
[1738334223440,2.98099,3354.6,3354.5,0.07482573]
[1738334223807,2.98088,3354.8,3353.9,0.59543227]
[1738334223808,2.98088,3354.8,3354.1,2.98133]
[1738334224140,2.98077,3354.9,3354.2,1.51076403]
[1738334224433,2.98098,3354.6,3354.2,0.8549308]
[1738334224596,2.98109,3354.5,3354.2,0.8549308]
[1738334224790,2.98091,3354.7,3354.2,0.8549308]
[1738334225003,2.98061,3355.1,3354.5,2.981]
[1738334225203,6.8826866,3356.1,3354.2,0.8549308]
[1738334225204,2.98018,3355.6,3354.8,2.98078]
[1738334225503,2.78028,3355.4,3354.9,0.07450796]
[1738334225727,2.98018,3355.6,3355.0,3.80424]
[1738334225897,0.55,3356.4,3355.2,2.98037]
[1738334226243,2.97979,3356.0,3355.3,0.07424694]
[1738334226439,2.97954,3356.3,3355.4,2.98027]
[1738334226602,2.97958,3356.2,3355.6,2.98003]
[1738334226841,2.97974,3356.0,3355.7,0.07407947]
[1738334227364,2.97974,3356.0,3355.0,0.8237]
[1738334227365,2.98016,3355.6,3355.0,0.8237]
[1738334227569,2.97991,3355.8,3355.1,2.98053]
[1738334227771,2.98001,3355.7,3355.0,3.80429]
[1738334227973,2.98001,3355.7,3355.1,2.98053]
[1738334228282,2.98032,3355.4,3355.0,0.8237]
[1738334228640,2.98035,3355.3,3354.3,3.56864069]
[1738334228954,2.98089,3354.7,3354.1,3.80545]
[1738334229373,2.98112,3354.5,3354.1,0.8241]
[1738334229765,2.98087,3354.8,3354.1,3.80547]
[1738334229967,2.98105,3354.6,3354.1,0.8241]
[1738334230596,2.98093,3354.7,3354.1,3.80549]
[1738334230797,2.981,3354.6,3354.1,0.8241]
[1738334230946,149.0535,3354.5,3354.1,0.8241]
[1738334231151,152.03462,3354.5,3354.1,0.8241]
[1738334232052,2.98153,3354.0,3353.4,0.7797]
[1738334232273,2.98137,3354.2,3353.4,0.7797]
[1738334232474,2.98137,3354.2,3353.6,2.98185]
[1738334232675,2.98144,3354.1,3353.6,2.98185]
[1738334232875,152.03443691,3354.5,3353.9,2.98155]
[1738334232876,152.03457,3354.5,3353.9,2.98155]
[1738334233075,149.0535,3354.5,3353.9,2.98155]
[1738334233664,152.03457,3354.5,3353.9,2.98153]
[1738334233868,149.0535,3354.5,3354.1,2.98142]
[1738334234196,149.0535,3354.5,3354.3,2.98121]
[1738334234415,149.0535,3354.5,3354.4,3.74765]
[1738334234715,149.0535,3354.5,3353.9,0.7665]
[1738334234892,2.98146,3354.1,3353.5,4.33916377]
[1738334235093,2.98146,3354.1,3353.5,3.74845]
[1738334235714,2.98156,3354.0,3353.5,0.7665]
[1738334235915,2.98137,3354.2,3353.5,0.7665]
[1738334235916,2.98136,3354.2,3353.5,0.7665]
[1738334236211,2.98144,3354.1,3353.5,3.7484]
[1738334236413,2.98119,3354.4,3353.7,2.98177]
[1738334236612,149.0535,3354.5,3353.5,0.7665]
[1738334236774,152.03462,3354.5,3353.8,2.98166]
[1738334236977,2.98132,3354.3,3353.6,2.98187]
[1738334237318,2.98161,3353.9,3353.5,0.7665]
[1738334237614,5.96296,3354.1,3353.5,3.74845]
[1738334237813,5.96296,3354.1,3353.5,0.7665]
[1738334237814,2.98145,3354.1,3353.5,0.7665]
[1738334238031,2.98184,3353.7,3353.4,0.60359557]
[1738334238324,2.98195,3353.5,3353.1,0.7846]
[1738334238512,9.51374,3353.6,3353.5,0.07511884]
[1738334238706,0.55,3353.6,3352.7,0.791]
[1738334239018,2.98214,3353.3,3352.8,0.59530589]
[1738334239238,2.9821,3353.4,3352.8,3.57787589]
[1738334239453,3.53155,3354.0,3352.9,0.07522324]
[1738334239454,2.9824,3353.0,3352.9,0.07522324]
[1738334239666,2.9823,3353.2,3352.9,0.07522324]
[1738334239961,2.98155,3354.0,3353.3,2.98208]
[1738334240158,2.98147,3354.1,3353.3,2.98208]
[1738334240306,2.98147,3354.1,3353.4,0.8061]
[1738334240513,2.98135,3354.2,3353.6,2.98185]
[1738334240825,2.98135,3354.2,3353.4,3.78809]
[1738334241154,2.98169,3353.8,3353.4,1.483119]
[1738334241308,2.98169,3353.8,3353.0,0.8132]
[1738334241637,2.98187,3353.6,3353.0,3.79554]
[1738334241952,0.55,3354.4,3353.0,0.8132]
[1738334242107,0.55,3354.4,3353.1,0.07521407]
[1738334242108,2.98222,3353.2,3353.1,0.07521407]
[1738334242310,2.98247,3353.0,3352.6,0.60057677]
[1738334242512,2.98247,3353.0,3352.4,6.81168]
[1738334242710,2.98222,3353.2,3352.6,3.0]
[1738334242907,2.98222,3353.2,3352.7,2.98266]
[1738334243255,2.98246,3353.0,3352.4,3.8288]
[1738334243459,2.98246,3353.0,3352.4,0.8288]
[1738334243460,2.98255,3352.9,3352.4,0.8288]
[1738334243758,2.98246,3353.0,3352.4,0.8288]
[1738334244049,2.98259,3352.8,3352.4,0.8288]
[1738334244662,2.98259,3352.8,3352.2,2.98309]
[1738334244848,2.98287,3352.5,3352.1,0.60731678]
[1738334245016,2.98287,3352.5,3351.7,5.34448]
[1738334245017,2.98308,3352.3,3351.7,5.34448]
[1738334245594,2.98308,3352.3,3351.7,2.361]
[1738334245736,2.98308,3352.3,3351.7,5.34455]
[1738334246142,0.7519,3352.1,3351.1,2.98406]
[1738334246315,0.7519,3352.1,3351.0,0.8032]
[1738334246316,0.7519,3352.1,3351.5,2.98372]
[1738334246515,3.7351,3352.1,3351.3,2.98391]
[1738334246828,2.98345,3351.9,3351.3,2.98391]
[1738334247225,3.7351,3352.1,3351.4,2.98381]
[1738334247537,0.7519,3352.1,3351.0,0.8032]
[1738334247742,2.98312,3352.2,3351.1,0.60009904]
[1738334247944,2.98295,3352.4,3351.1,0.60009904]
[1738334248247,2.98302,3352.3,3351.6,2.98356]
[1738334248405,3.73475,3352.5,3351.7,2.98355]
[1738334248607,3.73475,3352.5,3351.9,2.98337]
[1738334248853,3.75001,3352.9,3352.2,2.98307]
[1738334249258,2.98234,3353.1,3352.5,2.98284]
[1738334249421,2.98223,3353.2,3352.6,2.98273]
[1738334249610,2.98223,3353.2,3352.5,2.98284]
[1738334249811,2.98249,3353.0,3352.3,2.98301]
[1738334250046,2.98223,3353.2,3352.5,2.98276]
[1738334250360,2.98215,3353.3,3352.7,2.98259]
[1738334250555,0.7759,3353.7,3352.8,2.98251]
[1738334250760,2.98893,3354.1,3353.3,2.98206]
[1738334250761,2.98157,3354.0,3353.3,2.98206]
[1738334250965,0.7759,3354.1,3352.6,0.8161]
[1738334250966,2.98178,3353.7,3353.1,2.9823]
[1738334251554,2.98168,3353.9,3353.2,3.05841745]
[1738334251758,2.98168,3353.9,3353.3,2.98208]
[1738334251908,2.98169,3353.8,3353.3,2.98208]
[1738334252110,2.98169,3353.8,3353.4,0.07618828]
[1738334252541,2.98169,3353.8,3353.1,2.98228]
[1738334252743,2.98201,3353.5,3352.7,2.98266]
[1738334252957,2.98201,3353.5,3353.2,0.07619745]
[1738334253107,2.98237,3353.1,3351.4,2.98378]
[1738334253315,3.79506,3353.3,3352.6,0.6045328]
[1738334253514,3.361666,3353.3,3352.7,2.9826]
[1738334253745,3.361666,3353.3,3352.6,3.5872228]
[1738334253961,3.361666,3353.3,3352.2,0.8059]
[1738334253962,2.9825,3352.9,3352.2,0.8059]
[1738334254142,2.98233,3353.1,3352.3,2.983]
[1738334254357,2.98216,3353.3,3352.7,2.98259]
[1738334254567,2.98202,3353.5,3352.9,2.98242]
[1738334254866,2.98163,3353.9,3353.1,2.98223]
[1738334255074,2.98179,3353.7,3353.1,2.98223]
[1738334255368,2.98174,3353.8,3353.1,2.98223]
[1738334255665,2.98174,3353.8,3353.2,2.98222]
[1738334256457,3.73554,3354.1,3353.1,2.98223]
[1738334256626,2.98125,3354.3,3353.6,2.9818]
[1738334256833,2.98135,3354.2,3353.6,2.9818]
[1738334257037,2.98187,3353.6,3353.0,0.782]
[1738334257235,2.98198,3353.5,3353.0,0.782]
[1738334257453,2.98214,3353.3,3352.9,0.60703876]
[1738334257765,2.98171,3353.8,3352.9,3.58946876]
[1738334257932,2.98171,3353.8,3353.1,2.98226]
[1738334258139,2.98192,3353.6,3352.9,3.58946876]
[1738334258334,2.98171,3353.8,3353.2,2.98217]
[1738334258576,2.98178,3353.7,3353.1,2.98222]
[1738334258784,2.98178,3353.7,3353.2,2.98221]
[1738334258946,2.98157,3354.0,3353.2,0.07613267]
[1738334259141,2.98162,3353.9,3353.3,2.98209]
[1738334259363,2.98162,3353.9,3353.3,3.05821809]
[1738334259543,0.7937,3354.2,3353.3,3.05821809]
[1738334259722,2.98185,3353.7,3353.3,0.07612809]
[1738334259948,2.98217,3353.3,3352.6,0.7996]
[1738334260280,2.98217,3353.3,3352.7,2.98264]
[1738334260770,2.98217,3353.3,3352.6,0.7996]
[1738334260771,2.9824,3353.0,3352.3,2.98299]
[1738334260949,2.9824,3353.0,3352.5,2.98284]
[1738334261150,2.98261,3352.8,3352.2,3.7387]
[1738334261350,2.9824,3353.0,3352.2,3.7387]
[1738334261535,2.9824,3353.0,3352.3,2.98295]
[1738334261736,2.98252,3352.9,3352.3,2.98295]
[1738334262139,0.596478,3352.9,3351.7,0.7648]
[1738334262337,2.98275,3352.7,3351.9,2.98335]
[1738334262543,2.98285,3352.5,3351.9,2.98337]
[1738334262740,2.98294,3352.4,3351.7,0.7648]
[1738334262928,2.9831,3352.3,3351.9,0.61022206]
[1738334263129,2.98278,3352.6,3351.9,0.61022206]
[1738334263548,2.98294,3352.4,3351.9,0.61022206]
[1738334263942,1.3426,3352.3,3351.3,2.362]
[1738334264149,1.3426,3352.3,3351.4,0.60103502]
[1738334264150,0.7851,3352.3,3351.4,0.60103502]
[1738334264418,2.98244,3353.0,3352.5,2.98283]
[1738334264570,2.98251,3352.9,3352.2,2.98303]
[1738334264728,2.9826,3352.8,3352.2,3.658971]
[1738334265077,2.9822,3353.3,3352.7,2.98265]
[1738334265275,2.98233,3353.1,3352.4,2.98287]
[1738334265442,2.98275,3352.7,3352.2,0.61034137]
[1738334265644,0.33556152,3352.6,3351.9,0.7931]
[1738334265851,2.983,3352.4,3351.9,0.7931]
[1738334266070,2.98315,3352.2,3351.6,2.98358]
[1738334266242,2.98335,3352.0,3351.4,0.58817561]
[1738334266445,2.98348,3351.8,3351.2,2.98395]
[1738334266624,2.98335,3352.0,3351.4,2.98376]
[1738334266824,2.98346,3351.9,3351.2,2.98395]
[1738334267029,2.98364,3351.7,3351.1,2.98404]
[1738334267469,2.98346,3351.9,3351.2,2.98398]
[1738334267470,5.9669,3351.9,3351.2,2.98398]
[1738334267628,5.9669,3351.9,3351.2,3.05493234]
[1738334267829,2.9832,3352.2,3351.6,2.98362]
[1738334268029,2.98324,3352.1,3351.7,0.07092939]
[1738334268335,2.9836,3351.7,3351.1,0.59175658]
[1738334268652,2.98338,3351.9,3351.1,3.57576658]
[1738334268856,2.98362,3351.7,3351.2,0.07095234]
[1738334269461,2.98347,3351.8,3351.2,3.05493234]
[1738334269644,2.98347,3351.8,3351.2,0.07095234]
[1738334269970,2.98324,3352.1,3351.5,2.98365]
[1738334270271,2.98324,3352.1,3351.6,2.98363]
[1738334270441,2.98324,3352.1,3351.6,0.07093398]
[1738334270771,2.98324,3352.1,3351.4,2.98377]
[1738334270976,2.98324,3352.1,3351.7,0.07092939]
[1738334271132,2.98337,3352.0,3351.3,2.98389]
[1738334271626,2.98337,3352.0,3351.4,2.98381]
[1738334271826,2.98337,3352.0,3351.4,3.05475316]
[1738334272229,2.98324,3352.1,3351.4,3.05475316]
[1738334272430,2.98324,3352.1,3351.5,2.98372]
[1738334272671,3.78775,3352.3,3351.6,0.07093398]
[1738334272886,3.78775,3352.3,3351.7,2.98354]
[1738334273048,2.98328,3352.1,3351.7,0.07092939]
[1738334273247,2.98334,3352.0,3351.7,0.07092939]
[1738334273446,2.98334,3352.0,3351.1,1.37675658]
[1738334273659,2.98334,3352.0,3351.2,3.07136869]
[1738334273974,2.98381,3351.5,3351.2,0.07136869]
[1738334274183,3.02114772,3351.4,3351.2,0.07136869]
[1738334274359,3.02114772,3351.4,3350.7,3.73714]